[Event "Titled Tuesday Blitz April 26 Early 2022"]
[White "Shtyka, Sergey"]
[Black "Samarth, J Rao"]
[WhiteFideId "4138465"]
[BlackFideId "46652370"]
[WhiteElo "2014"]
[BlackElo "1514"]
[Result "1-0"]
[Round "02"]
[TimeControl "180+1"]
[Date "2022.04.26"]
[WhiteClock "0:00:02"]
[BlackClock "0:00:08"]

1. e4 {[%clk 0:03:00]}  c5 {[%clk 0:02:42]} 2. Nf3 {[%clk 0:03:00]}  d6 {[%clk 0:02:42]} 3. d4 {[%clk 0:03:00]}  cxd4 {[%clk 0:02:43]} 4. Nxd4 {[%clk 0:03:01]}  Nf6 {[%clk 0:02:43]} 5. Nc3 {[%clk 0:03:01]}  a6 {[%clk 0:02:43]} 6. Bd3 {[%clk 0:03:00]}  e5 {[%clk 0:02:41]} 7. Nde2 {[%clk 0:02:57]}  Be7 {[%clk 0:02:41]} 8. Ng3 {[%clk 0:02:57]}  Bg4 {[%clk 0:02:36]} 9. f3 {[%clk 0:02:55]}  Be6 {[%clk 0:02:36]} 10. Be3 {[%clk 0:02:53]}  Nbd7 {[%clk 0:02:14]} 11. O-O {[%clk 0:02:52]}  O-O {[%clk 0:02:06]} 12. Qd2 {[%clk 0:02:51]}  Nc5 {[%clk 0:02:02]} 13. Rad1 {[%clk 0:02:49]}  Nxd3 {[%clk 0:02:01]} 14. cxd3 {[%clk 0:02:45]}  d5 {[%clk 0:02:00]} 15. exd5 {[%clk 0:02:26]}  Nxd5 {[%clk 0:02:01]} 16. Nxd5 {[%clk 0:02:26]}  Qxd5 {[%clk 0:02:02]} 17. b3 {[%clk 0:02:20]}  Rfd8 {[%clk 0:02:00]} 18. Qf2 {[%clk 0:01:44]}  f5 {[%clk 0:01:52]} 19. f4 {[%clk 0:01:39]}  e4 {[%clk 0:01:48]} 20. d4 {[%clk 0:01:28]}  Rdc8 {[%clk 0:01:30]} 21. Rc1 {[%clk 0:01:27]}  b5 {[%clk 0:01:25]} 22. Rxc8+ {[%clk 0:01:22]}  Rxc8 {[%clk 0:01:22]} 23. Rc1 {[%clk 0:01:23]}  Rxc1+ {[%clk 0:01:17]} 24. Bxc1 {[%clk 0:01:22]}  Qc6 {[%clk 0:01:18]} 25. Be3 {[%clk 0:01:18]}  a5 {[%clk 0:01:13]} 26. h3 {[%clk 0:01:17]}  a4 {[%clk 0:01:04]} 27. bxa4 {[%clk 0:01:15]}  b4 {[%clk 0:01:04]} 28. Qb2 {[%clk 0:00:59]}  Qxa4 {[%clk 0:00:58]} 29. d5 {[%clk 0:00:58]}  Bxd5 {[%clk 0:00:58]} 30. Qe5 {[%clk 0:00:47]}  Qd7 {[%clk 0:00:47]} 31. Nxf5 {[%clk 0:00:39]}  Bf6 {[%clk 0:00:41]} 32. Nh6+ {[%clk 0:00:23]}  Kf8 {[%clk 0:00:29]} 33. Bc5+ {[%clk 0:00:21]}  Be7 {[%clk 0:00:29]} 34. Bxe7+ {[%clk 0:00:18]}  Qxe7 {[%clk 0:00:29]} 35. Qb8+ {[%clk 0:00:13]}  Qe8 {[%clk 0:00:25]} 36. Qxb4+ {[%clk 0:00:13]}  Qe7 {[%clk 0:00:19]} 37. Qb8+ {[%clk 0:00:12]}  Qe8 {[%clk 0:00:19]} 38. Qd6+ {[%clk 0:00:08]}  Qe7 {[%clk 0:00:18]} 39. Qxd5 {[%clk 0:00:06]}  gxh6 {[%clk 0:00:16]} 40. Kf2 {[%clk 0:00:06]}  Qa7+ {[%clk 0:00:14]} 41. Kg3 {[%clk 0:00:05]}  Qa3+ {[%clk 0:00:13]} 42. Kg4 {[%clk 0:00:04]}  Qe3 {[%clk 0:00:12]} 43. Kf5 {[%clk 0:00:03]}  Qd3 {[%clk 0:00:09]} 44. Qxe4 {[%clk 0:00:02]}  Qd7+ {[%clk 0:00:06]} 45. Ke5 {[%clk 0:00:02]}  Qe7+ {[%clk 0:00:06]} 46. Kd4 {[%clk 0:00:02]}  Qd7+ {[%clk 0:00:07]} 47. Ke3 {[%clk 0:00:03]}  Qa4 {[%clk 0:00:08]} 48. Qxa4 {[%clk 0:00:02]} 1-0


[Site "https://www.chess.com"]

[Event "Titled Tuesday Blitz April 26 Early 2022"]
[White "Silvestre, Christian"]
[Black "Aslanov, Umid"]
[WhiteFideId "30956269"]
[BlackFideId "13412620"]
[WhiteElo "2300"]
[BlackElo "1796"]
[Result "1-0"]
[Round "02"]
[TimeControl "180+1"]
[Date "2022.04.26"]
[WhiteClock "0:00:30"]
[BlackClock "0:00:27"]

1. Nf3 {[%clk 0:02:59]}  d5 {[%clk 0:03:00]} 2. d4 {[%clk 0:02:59]}  Nf6 {[%clk 0:03:00]} 3. Bf4 {[%clk 0:02:58]}  c5 {[%clk 0:02:58]} 4. e3 {[%clk 0:02:58]}  Nc6 {[%clk 0:02:59]} 5. c3 {[%clk 0:02:57]}  Bg4 {[%clk 0:02:59]} 6. Be2 {[%clk 0:02:56]}  Qb6 {[%clk 0:02:56]} 7. Qb3 {[%clk 0:02:52]}  c4 {[%clk 0:02:56]} 8. Qc2 {[%clk 0:02:51]}  Bf5 {[%clk 0:02:51]} 9. Qc1 {[%clk 0:02:50]}  e6 {[%clk 0:02:48]} 10. h3 {[%clk 0:02:48]}  h5 {[%clk 0:02:47]} 11. Nbd2 {[%clk 0:02:45]}  Be7 {[%clk 0:02:43]} 12. Bd1 {[%clk 0:02:44]}  Ne4 {[%clk 0:02:41]} 13. Bc2 {[%clk 0:02:42]}  Nxd2 {[%clk 0:02:36]} 14. Nxd2 {[%clk 0:02:42]}  Bxc2 {[%clk 0:02:36]} 15. Qxc2 {[%clk 0:02:43]}  Qd8 {[%clk 0:02:16]} 16. e4 {[%clk 0:02:36]}  Bg5 {[%clk 0:02:15]} 17. Bxg5 {[%clk 0:02:31]}  Qxg5 {[%clk 0:02:16]} 18. O-O {[%clk 0:02:26]}  Qg6 {[%clk 0:01:57]} 19. f4 {[%clk 0:02:20]}  O-O-O {[%clk 0:01:45]} 20. f5 {[%clk 0:02:14]}  Qg5 {[%clk 0:01:42]} 21. Rae1 {[%clk 0:01:54]}  e5 {[%clk 0:01:25]} 22. exd5 {[%clk 0:01:42]}  Rxd5 {[%clk 0:01:21]} 23. Nf3 {[%clk 0:01:28]}  Qg3 {[%clk 0:01:19]} 24. Qe4 {[%clk 0:01:20]}  Rb5 {[%clk 0:01:10]} 25. Re2 {[%clk 0:01:02]}  exd4 {[%clk 0:00:47]} 26. Nxd4 {[%clk 0:01:00]}  Re5 {[%clk 0:00:40]} 27. Qf4 {[%clk 0:00:47]}  Nxd4 {[%clk 0:00:34]} 28. Rxe5 {[%clk 0:00:40]}  Qxf4 {[%clk 0:00:26]} 29. Rxf4 {[%clk 0:00:41]}  Nc6 {[%clk 0:00:26]} 30. Rxc4 {[%clk 0:00:40]}  Kd7 {[%clk 0:00:27]} 31. Re2 {[%clk 0:00:40]}  g6 {[%clk 0:00:25]} 32. Rf4 {[%clk 0:00:40]}  Rf8 {[%clk 0:00:25]} 33. fxg6 {[%clk 0:00:39]}  f5 {[%clk 0:00:26]} 34. g4 {[%clk 0:00:37]}  hxg4 {[%clk 0:00:25]} 35. hxg4 {[%clk 0:00:37]}  Ne7 {[%clk 0:00:26]} 36. gxf5 {[%clk 0:00:33]}  Nxg6 {[%clk 0:00:27]} 37. Rd4+ {[%clk 0:00:30]} 1-0


[Site "https://www.chess.com"]

[Event "Titled Tuesday Blitz April 26 Early 2022"]
[White "Starozhilov, Leonid"]
[Black "Nakamura, Hikaru"]
[WhiteFideId "14106752"]
[BlackFideId "2016192"]
[WhiteElo "2414"]
[BlackElo "2850"]
[Result "0-1"]
[Round "02"]
[TimeControl "180+1"]
[Date "2022.04.26"]
[WhiteClock "0:00:09"]
[BlackClock "0:01:36"]

1. e4 {[%clk 0:03:00]}  g6 {[%clk 0:02:59]} 2. d4 {[%clk 0:03:00]}  Bg7 {[%clk 0:02:59]} 3. c4 {[%clk 0:03:00]}  d6 {[%clk 0:02:58]} 4. Nc3 {[%clk 0:03:01]}  Nc6 {[%clk 0:02:57]} 5. Be3 {[%clk 0:03:01]}  e5 {[%clk 0:02:56]} 6. d5 {[%clk 0:03:00]}  Nce7 {[%clk 0:02:56]} 7. h4 {[%clk 0:02:56]}  f5 {[%clk 0:02:49]} 8. Nf3 {[%clk 0:02:45]}  h6 {[%clk 0:02:47]} 9. Bd3 {[%clk 0:02:39]}  Nf6 {[%clk 0:02:47]} 10. Qc2 {[%clk 0:02:30]}  c6 {[%clk 0:02:46]} 11. dxc6 {[%clk 0:02:23]}  bxc6 {[%clk 0:02:44]} 12. c5 {[%clk 0:02:18]}  d5 {[%clk 0:02:17]} 13. Nxe5 {[%clk 0:01:35]}  fxe4 {[%clk 0:02:13]} 14. Be2 {[%clk 0:01:29]}  Nd7 {[%clk 0:02:08]} 15. Nxc6 {[%clk 0:00:49]}  Nxc6 {[%clk 0:02:07]} 16. Nxd5 {[%clk 0:00:50]}  Qa5+ {[%clk 0:01:56]} 17. Bd2 {[%clk 0:00:42]}  Qd8 {[%clk 0:01:55]} 18. Qxe4+ {[%clk 0:00:42]}  Nde5 {[%clk 0:01:55]} 19. f4 {[%clk 0:00:31]}  Bf5 {[%clk 0:01:55]} 20. Qe3 {[%clk 0:00:31]}  Qxd5 {[%clk 0:01:54]} 21. Bc3 {[%clk 0:00:24]}  O-O {[%clk 0:01:52]} 22. fxe5 {[%clk 0:00:24]}  Nxe5 {[%clk 0:01:44]} 23. Rd1 {[%clk 0:00:23]}  Qxg2 {[%clk 0:01:40]} 24. Rg1 {[%clk 0:00:21]}  Qh2 {[%clk 0:01:40]} 25. h5 {[%clk 0:00:17]}  Rae8 {[%clk 0:01:39]} 26. Qg3 {[%clk 0:00:10]}  Nd3+ {[%clk 0:01:36]} 27. Rxd3 {[%clk 0:00:09]}  Qxe2# {[%clk 0:01:36]} 0-1


[Site "https://www.chess.com"]

[Event "Titled Tuesday Blitz April 26 Early 2022"]
[White "Taboas Rodriguez, Daniel"]
[Black "Ibrahimli, Murad"]
[WhiteFideId "2208466"]
[BlackFideId "13410229"]
[WhiteElo "2429"]
[BlackElo "2109"]
[Result "0-1"]
[Round "02"]
[TimeControl "180+1"]
[Date "2022.04.26"]
[WhiteClock "0:01:10"]
[BlackClock "0:01:22"]

1. d4 {[%clk 0:02:59]}  d5 {[%clk 0:02:59]} 2. Nf3 {[%clk 0:03:00]}  Nf6 {[%clk 0:02:59]} 3. c4 {[%clk 0:03:01]}  dxc4 {[%clk 0:02:59]} 4. e3 {[%clk 0:03:01]}  Bg4 {[%clk 0:02:59]} 5. Bxc4 {[%clk 0:03:01]}  e6 {[%clk 0:02:59]} 6. Be2 {[%clk 0:03:01]}  Nc6 {[%clk 0:02:56]} 7. Nc3 {[%clk 0:03:00]}  Bd6 {[%clk 0:02:54]} 8. h3 {[%clk 0:02:58]}  Bh5 {[%clk 0:02:53]} 9. Ng5 {[%clk 0:02:58]}  Bxe2 {[%clk 0:02:52]} 10. Qxe2 {[%clk 0:02:59]}  O-O {[%clk 0:02:52]} 11. O-O {[%clk 0:02:59]}  e5 {[%clk 0:02:40]} 12. d5 {[%clk 0:02:51]}  Nxd5 {[%clk 0:02:39]} 13. Nxd5 {[%clk 0:02:43]}  Qxg5 {[%clk 0:02:37]} 14. e4 {[%clk 0:02:43]}  Qg6 {[%clk 0:02:35]} 15. Qg4 {[%clk 0:02:25]}  Nd4 {[%clk 0:02:30]} 16. Be3 {[%clk 0:02:22]}  c6 {[%clk 0:02:29]} 17. Nc3 {[%clk 0:02:12]}  Rfd8 {[%clk 0:02:28]} 18. Rad1 {[%clk 0:02:08]}  Be7 {[%clk 0:02:22]} 19. Qxg6 {[%clk 0:02:01]}  hxg6 {[%clk 0:02:21]} 20. Bxd4 {[%clk 0:01:56]}  exd4 {[%clk 0:02:21]} 21. Ne2 {[%clk 0:01:57]}  d3 {[%clk 0:02:18]} 22. Nc1 {[%clk 0:01:53]}  d2 {[%clk 0:02:06]} 23. Nb3 {[%clk 0:01:53]}  Bf6 {[%clk 0:02:07]} 24. Rxd2 {[%clk 0:01:39]}  Rxd2 {[%clk 0:02:07]} 25. Nxd2 {[%clk 0:01:40]}  Bxb2 {[%clk 0:01:59]} 26. Nc4 {[%clk 0:01:40]}  Bd4 {[%clk 0:01:54]} 27. Rd1 {[%clk 0:01:39]}  Rd8 {[%clk 0:01:53]} 28. Kf1 {[%clk 0:01:39]}  Bf6 {[%clk 0:01:32]} 29. Rxd8+ {[%clk 0:01:37]}  Bxd8 {[%clk 0:01:33]} 30. Ke2 {[%clk 0:01:33]}  Bc7 {[%clk 0:01:33]} 31. Ke3 {[%clk 0:01:27]}  b5 {[%clk 0:01:32]} 32. Nb2 {[%clk 0:01:26]}  Kf8 {[%clk 0:01:32]} 33. f4 {[%clk 0:01:26]}  Ke7 {[%clk 0:01:31]} 34. e5 {[%clk 0:01:25]}  Ke6 {[%clk 0:01:28]} 35. Ke4 {[%clk 0:01:26]}  f5+ {[%clk 0:01:29]} 36. exf6 {[%clk 0:01:26]}  gxf6 {[%clk 0:01:29]} 37. g4 {[%clk 0:01:21]}  f5+ {[%clk 0:01:29]} 38. gxf5+ {[%clk 0:01:22]}  gxf5+ {[%clk 0:01:30]} 39. Ke3 {[%clk 0:01:21]}  Bb6+ {[%clk 0:01:27]} 40. Kd3 {[%clk 0:01:16]}  Bd8 {[%clk 0:01:27]} 41. Kd4 {[%clk 0:01:12]}  Bf6+ {[%clk 0:01:21]} 42. Kc5 {[%clk 0:01:13]}  Bxb2 {[%clk 0:01:21]} 43. Kxc6 {[%clk 0:01:13]}  b4 {[%clk 0:01:22]} 44. Kb5 {[%clk 0:01:11]}  Bc1 {[%clk 0:01:21]} 45. Kxb4 {[%clk 0:01:10]}  Bxf4 {[%clk 0:01:22]} 0-1


[Site "https://www.chess.com"]

[Event "Titled Tuesday Blitz April 26 Early 2022"]
[White "Taichman, Ori"]
[Black "Polster, Christian"]
[WhiteFideId "2804069"]
[BlackFideId "12965081"]
[WhiteElo "2227"]
[BlackElo "2323"]
[Result "1-0"]
[Round "02"]
[TimeControl "180+1"]
[Date "2022.04.26"]
[WhiteClock "0:00:19"]
[BlackClock "0:00:06"]

1. e4 {[%clk 0:02:57]}  c5 {[%clk 0:02:57]} 2. b3 {[%clk 0:02:55]}  Nf6 {[%clk 0:02:56]} 3. e5 {[%clk 0:02:55]}  Nd5 {[%clk 0:02:56]} 4. Bb2 {[%clk 0:02:55]}  Nc6 {[%clk 0:02:56]} 5. g3 {[%clk 0:02:54]}  d6 {[%clk 0:02:54]} 6. exd6 {[%clk 0:02:53]}  Qxd6 {[%clk 0:02:50]} 7. Bg2 {[%clk 0:02:54]}  Bf5 {[%clk 0:02:11]} 8. Ne2 {[%clk 0:02:11]}  e5 {[%clk 0:01:55]} 9. Nec3 {[%clk 0:01:59]}  Ndb4 {[%clk 0:01:46]} 10. Na3 {[%clk 0:01:58]}  Nd4 {[%clk 0:01:36]} 11. d3 {[%clk 0:01:53]}  Ndxc2+ {[%clk 0:01:12]} 12. Nxc2 {[%clk 0:01:52]}  Nxd3+ {[%clk 0:01:03]} 13. Ke2 {[%clk 0:01:34]}  Qa6 {[%clk 0:00:38]} 14. Ke3 {[%clk 0:00:58]}  c4 {[%clk 0:00:20]} 15. Qf3 {[%clk 0:00:42]}  Bc5+ {[%clk 0:00:17]} 16. Kd2 {[%clk 0:00:42]}  O-O-O {[%clk 0:00:14]} 17. Qxf5+ {[%clk 0:00:42]}  Kb8 {[%clk 0:00:14]} 18. Nd5 {[%clk 0:00:28]}  Nxb2 {[%clk 0:00:12]} 19. Qxe5+ {[%clk 0:00:28]}  Ka8 {[%clk 0:00:12]} 20. Qxb2 {[%clk 0:00:28]}  c3+ {[%clk 0:00:10]} 21. Qxc3 {[%clk 0:00:27]}  Qc6 {[%clk 0:00:07]} 22. Nd4 {[%clk 0:00:22]}  Bxd4 {[%clk 0:00:06]} 23. Qxd4 {[%clk 0:00:22]}  Rxd5 {[%clk 0:00:04]} 24. Qxd5 {[%clk 0:00:19]}  Qxd5+ {[%clk 0:00:04]} 25. Bxd5 {[%clk 0:00:19]}  Rd8 {[%clk 0:00:05]} 26. Rhe1 {[%clk 0:00:19]}  Rxd5+ {[%clk 0:00:06]} 27. Kc2 {[%clk 0:00:20]}  a6 {[%clk 0:00:06]} 28. Rad1 {[%clk 0:00:19]} 1-0


[Site "https://www.chess.com"]

[Event "Titled Tuesday Blitz April 26 Early 2022"]
[White "Todorovic, Bojan"]
[Black "Leiva, Gianmarco"]
[WhiteFideId "917087"]
[BlackFideId "3804399"]
[WhiteElo "2266"]
[BlackElo "2323"]
[Result "1-0"]
[Round "02"]
[TimeControl "180+1"]
[Date "2022.04.26"]
[WhiteClock "0:00:09"]
[BlackClock "0:00:13"]

1. d4 {[%clk 0:02:59]}  Nf6 {[%clk 0:02:58]} 2. c4 {[%clk 0:02:58]}  g6 {[%clk 0:02:59]} 3. Nc3 {[%clk 0:02:57]}  d5 {[%clk 0:02:59]} 4. Nf3 {[%clk 0:02:57]}  Bg7 {[%clk 0:02:59]} 5. Bg5 {[%clk 0:02:55]}  Ne4 {[%clk 0:02:58]} 6. Bh4 {[%clk 0:02:55]}  c6 {[%clk 0:02:54]} 7. e3 {[%clk 0:02:45]}  O-O {[%clk 0:02:54]} 8. Bd3 {[%clk 0:02:26]}  Nxc3 {[%clk 0:02:54]} 9. bxc3 {[%clk 0:02:26]}  Bf5 {[%clk 0:02:32]} 10. O-O {[%clk 0:02:18]}  Nd7 {[%clk 0:02:17]} 11. Bxf5 {[%clk 0:02:09]}  gxf5 {[%clk 0:02:17]} 12. Qb3 {[%clk 0:02:06]}  Nb6 {[%clk 0:02:13]} 13. c5 {[%clk 0:02:03]}  Nc4 {[%clk 0:02:12]} 14. Qxb7 {[%clk 0:02:02]}  Bf6 {[%clk 0:01:58]} 15. Bxf6 {[%clk 0:01:58]}  exf6 {[%clk 0:01:58]} 16. Qxc6 {[%clk 0:01:56]}  Re8 {[%clk 0:01:49]} 17. Rab1 {[%clk 0:01:49]}  Re6 {[%clk 0:01:49]} 18. Qa4 {[%clk 0:01:48]}  Qc8 {[%clk 0:01:44]} 19. Rb5 {[%clk 0:01:14]}  Ra6 {[%clk 0:01:40]} 20. Qb3 {[%clk 0:01:12]}  Kg7 {[%clk 0:01:35]} 21. a4 {[%clk 0:01:08]}  f4 {[%clk 0:01:33]} 22. exf4 {[%clk 0:01:07]}  Qg4 {[%clk 0:01:33]} 23. Rb7 {[%clk 0:00:58]}  Re8 {[%clk 0:01:30]} 24. Rxf7+ {[%clk 0:00:50]}  Kxf7 {[%clk 0:01:25]} 25. Qb7+ {[%clk 0:00:50]}  Kg6 {[%clk 0:01:19]} 26. Qxa6 {[%clk 0:00:50]}  Re2 {[%clk 0:01:15]} 27. Ne5+ {[%clk 0:00:47]}  Nxe5 {[%clk 0:01:15]} 28. fxe5 {[%clk 0:00:47]}  Kg7 {[%clk 0:00:40]} 29. Qxf6+ {[%clk 0:00:45]}  Kg8 {[%clk 0:00:41]} 30. Qd8+ {[%clk 0:00:39]}  Kg7 {[%clk 0:00:41]} 31. Qxd5 {[%clk 0:00:38]}  Rd2 {[%clk 0:00:41]} 32. Qf3 {[%clk 0:00:34]}  Qg6 {[%clk 0:00:31]} 33. Re1 {[%clk 0:00:32]}  Rc2 {[%clk 0:00:30]} 34. e6 {[%clk 0:00:27]}  Qxe6 {[%clk 0:00:30]} 35. Qg3+ {[%clk 0:00:23]}  Kf7 {[%clk 0:00:29]} 36. Qf4+ {[%clk 0:00:23]}  Qf6 {[%clk 0:00:22]} 37. Qxf6+ {[%clk 0:00:21]}  Kxf6 {[%clk 0:00:23]} 38. Rd1 {[%clk 0:00:19]}  Rxc3 {[%clk 0:00:22]} 39. g3 {[%clk 0:00:19]}  Ke6 {[%clk 0:00:22]} 40. Kg2 {[%clk 0:00:19]}  Kd5 {[%clk 0:00:23]} 41. h4 {[%clk 0:00:18]}  Ra3 {[%clk 0:00:23]} 42. Kh3 {[%clk 0:00:16]}  Rxa4 {[%clk 0:00:23]} 43. Kg4 {[%clk 0:00:16]}  a5 {[%clk 0:00:21]} 44. f4 {[%clk 0:00:16]}  Ra3 {[%clk 0:00:22]} 45. f5 {[%clk 0:00:16]}  Ra2 {[%clk 0:00:22]} 46. Rd3 {[%clk 0:00:12]}  Rf2 {[%clk 0:00:21]} 47. Kg5 {[%clk 0:00:12]}  h5 {[%clk 0:00:18]} 48. f6 {[%clk 0:00:11]}  Kc4 {[%clk 0:00:18]} 49. Rd1 {[%clk 0:00:11]}  Kd5 {[%clk 0:00:19]} 50. Kg6 {[%clk 0:00:10]}  a4 {[%clk 0:00:19]} 51. f7 {[%clk 0:00:10]}  a3 {[%clk 0:00:18]} 52. Kg7 {[%clk 0:00:10]}  Rf1 {[%clk 0:00:13]} 53. Rxf1 {[%clk 0:00:09]} 1-0


[Site "https://www.chess.com"]

[Event "Titled Tuesday Blitz April 26 Early 2022"]
[White "Urbina Perez, Juan Antonio"]
[Black "Martin, Lewis"]
[WhiteFideId "2217368"]
[BlackFideId "410551"]
[WhiteElo "2192"]
[BlackElo "2145"]
[Result "1-0"]
[Round "02"]
[TimeControl "180+1"]
[Date "2022.04.26"]
[WhiteClock "0:00:50"]
[BlackClock "0:00:02"]

1. e4 {[%clk 0:03:00]}  c5 {[%clk 0:02:59]} 2. Nf3 {[%clk 0:03:00]}  d6 {[%clk 0:03:00]} 3. Bb5+ {[%clk 0:03:00]}  Bd7 {[%clk 0:02:58]} 4. Bxd7+ {[%clk 0:02:59]}  Qxd7 {[%clk 0:02:59]} 5. O-O {[%clk 0:02:57]}  Nf6 {[%clk 0:02:58]} 6. Qe2 {[%clk 0:02:57]}  Nc6 {[%clk 0:02:57]} 7. Nc3 {[%clk 0:02:53]}  e6 {[%clk 0:02:56]} 8. e5 {[%clk 0:02:53]}  dxe5 {[%clk 0:02:56]} 9. Nxe5 {[%clk 0:02:54]}  Nxe5 {[%clk 0:02:55]} 10. Qxe5 {[%clk 0:02:55]}  Bd6 {[%clk 0:02:54]} 11. Qg5 {[%clk 0:02:54]}  O-O {[%clk 0:02:46]} 12. d3 {[%clk 0:02:55]}  Qc6 {[%clk 0:02:12]} 13. Qh4 {[%clk 0:02:44]}  Rac8 {[%clk 0:02:05]} 14. Re1 {[%clk 0:02:42]}  Rfe8 {[%clk 0:01:59]} 15. Bg5 {[%clk 0:02:41]}  Nd7 {[%clk 0:01:54]} 16. Re3 {[%clk 0:02:35]}  Nf8 {[%clk 0:01:52]} 17. Ne4 {[%clk 0:02:30]}  Bb8 {[%clk 0:01:47]} 18. Rh3 {[%clk 0:02:26]}  f5 {[%clk 0:01:19]} 19. Nc3 {[%clk 0:02:01]}  e5 {[%clk 0:01:12]} 20. Re1 {[%clk 0:01:57]}  Re6 {[%clk 0:01:06]} 21. Qc4 {[%clk 0:01:55]}  Kh8 {[%clk 0:01:01]} 22. Bc1 {[%clk 0:01:44]}  Rg6 {[%clk 0:00:59]} 23. Rg3 {[%clk 0:01:43]}  f4 {[%clk 0:00:47]} 24. Rxg6 {[%clk 0:01:43]}  Nxg6 {[%clk 0:00:48]} 25. f3 {[%clk 0:01:41]}  Qf6 {[%clk 0:00:41]} 26. Ne4 {[%clk 0:01:37]}  Qe7 {[%clk 0:00:38]} 27. a4 {[%clk 0:01:35]}  b6 {[%clk 0:00:36]} 28. Bd2 {[%clk 0:01:33]}  h6 {[%clk 0:00:32]} 29. Nc3 {[%clk 0:01:28]}  Rf8 {[%clk 0:00:17]} 30. Qe4 {[%clk 0:01:25]}  Qg5 {[%clk 0:00:16]} 31. Re2 {[%clk 0:01:18]}  Nh4 {[%clk 0:00:14]} 32. Be1 {[%clk 0:01:17]}  Nf5 {[%clk 0:00:14]} 33. Bf2 {[%clk 0:01:15]}  Qf6 {[%clk 0:00:08]} 34. Nd5 {[%clk 0:01:12]}  Qg5 {[%clk 0:00:07]} 35. c4 {[%clk 0:01:11]}  h5 {[%clk 0:00:06]} 36. h3 {[%clk 0:01:10]}  h4 {[%clk 0:00:05]} 37. Nc3 {[%clk 0:01:05]}  Rf6 {[%clk 0:00:04]} 38. Qb7 {[%clk 0:01:00]}  Bd6 {[%clk 0:00:02]} 39. Ne4 {[%clk 0:01:00]}  Qg6 {[%clk 0:00:02]} 40. Nxf6 {[%clk 0:00:58]}  Qxf6 {[%clk 0:00:02]} 41. Qc8+ {[%clk 0:00:55]}  Kh7 {[%clk 0:00:02]} 42. Qe8 {[%clk 0:00:55]}  Kh6 {[%clk 0:00:02]} 43. Qd7 {[%clk 0:00:50]} 1-0


[Site "https://www.chess.com"]